bitfinex/quotes_BTCUSD_20241128
["timestamp","ask_amount","ask_price","bid_price","bid_amount"]
[1732825575693,0.15478194,95047.0,95046.0,0.12871205]
[1732825578026,0.15578194,95047.0,95046.0,0.12871205]
[1732825578235,0.15478194,95047.0,95046.0,0.12871205]
[1732825578446,0.15778194,95047.0,95046.0,0.12871205]
[1732825579079,0.15778194,95047.0,95046.0,0.12871248]
[1732825580850,0.15678194,95047.0,95046.0,0.12871248]
[1732825581314,0.15778194,95047.0,95046.0,0.12871248]
[1732825581770,0.15378194,95047.0,95046.0,0.12871248]
[1732825582446,0.15378194,95047.0,95046.0,0.11160107]
[1732825582656,0.15378194,95047.0,95046.0,0.02587062]
[1732825585987,0.15378194,95047.0,95046.0,0.01533846]
[1732825586822,0.15478194,95047.0,95046.0,0.01533846]
[1732825587268,0.30478194,95047.0,95046.0,0.01533846]
[1732825587691,0.38588194,95047.0,95046.0,0.0008614]
[1732825587873,0.38588194,95047.0,95046.0,0.00744449]
[1732825588136,0.38488194,95047.0,95046.0,0.00744449]
[1732825588638,0.39088194,95047.0,95046.0,0.00744449]
[1732825588874,0.39088194,95047.0,95046.0,0.24423266]
[1732825589096,0.42300235,95047.0,95046.0,0.0008614]
[1732825589310,0.38488194,95047.0,95046.0,0.0008614]
[1732825589522,0.39188194,95047.0,95046.0,0.0008614]
[1732825589959,0.38288194,95047.0,95046.0,0.0008614]
[1732825590172,0.38288194,95047.0,95046.0,0.09550996]
[1732825590380,0.38688194,95047.0,95046.0,0.09550996]
[1732825591037,0.38288194,95047.0,95046.0,0.09550996]
[1732825591265,0.38788194,95047.0,95046.0,0.0008614]
[1732825591482,0.39688194,95047.0,95046.0,0.0008614]
[1732825592361,0.52272715,95047.0,95046.0,0.0008614]
[1732825592595,0.62555861,95047.0,95046.0,0.0008614]
[1732825593277,0.51372715,95047.0,95046.0,0.0008614]
[1732825593599,0.50872715,95047.0,95046.0,0.0008614]
[1732825594037,0.51472715,95047.0,95046.0,0.0008614]
[1732825594700,0.52372715,95047.0,95046.0,0.0008614]
[1732825621293,0.52372715,95047.0,95044.0,0.01534155]
[1732825621294,0.528213,95045.0,95044.0,9.5e-07]
[1732825621500,0.75525821,95045.0,95044.0,9.5e-07]
[1732825621723,0.89018515,95045.0,95044.0,9.5e-07]
[1732825622781,0.90418515,95045.0,95044.0,9.5e-07]
[1732825623206,0.89018515,95045.0,95044.0,9.5e-07]
[1732825623432,0.89918515,95045.0,95044.0,9.5e-07]
[1732825623645,0.90618515,95045.0,95044.0,9.5e-07]
[1732825624105,0.89918515,95045.0,95044.0,9.5e-07]
[1732825624545,0.90818515,95045.0,95044.0,9.5e-07]
[1732825624975,0.89918515,95045.0,95044.0,9.5e-07]
[1732825625529,0.90818515,95045.0,95044.0,9.5e-07]
[1732825626301,0.89918515,95045.0,95044.0,9.5e-07]
[1732825628111,0.105226,95033.0,95032.0,0.0008617]
[1732825628303,0.48807121,95033.0,95032.0,0.0008617]
[1732825628511,0.54317641,95033.0,95032.0,0.0008617]
[1732825629692,0.57503862,95033.0,95032.0,0.0008617]
[1732825629906,0.59203862,95033.0,95032.0,0.0008617]
[1732825630534,0.53693342,95033.0,95032.0,0.0008617]
[1732825634325,0.53693342,95033.0,95032.0,0.0008617]
[1732825638217,0.53693342,95033.0,95032.0,0.00092656]
[1732825639587,0.55993342,95033.0,95032.0,0.00092656]
[1732825641551,0.55197942,95033.0,95032.0,0.00092656]
[1732825650138,0.58410507,95033.0,95032.0,0.00092656]
[1732825650840,0.45410507,95033.0,95032.0,0.00092656]
[1732825651284,0.29613421,95033.0,95032.0,0.00092656]
[1732825651503,0.29613421,95033.0,95032.0,0.09554622]
[1732825651719,0.29613421,95033.0,95032.0,0.00092656]
[1732825651916,0.29613421,95033.0,95032.0,0.09555342]
[1732825652339,0.42163421,95033.0,95032.0,0.09555342]
[1732825652553,0.54747942,95033.0,95032.0,0.09555342]
[1732825652980,0.54747942,95033.0,95032.0,0.00092656]
[1732825653194,0.54747942,95033.0,95032.0,0.09555342]
[1732825654101,0.57963633,95033.0,95032.0,0.09555342]
[1732825655802,0.57963633,95033.0,95032.0,0.00092656]
[1732825656548,0.67968966,95033.0,95032.0,0.00092656]
[1732825657619,0.67168966,95033.0,95032.0,0.00092656]
[1732825657837,0.67168966,95033.0,95031.0,0.0004]
[1732825657838,0.105235,95025.0,95024.0,0.06495627]
[1732825658058,0.255238,95022.0,95021.0,0.14192949]
[1732825659816,0.264238,95022.0,95021.0,0.14192949]
[1732825660246,0.255241,95020.0,95019.0,0.18923932]
[1732825661349,0.255243,95018.0,95017.0,0.23654915]
[1732825662118,0.105249,95012.0,95010.0,0.28385898]
[1732825662319,0.255249,95012.0,95011.0,0.00698569]
[1732825663771,0.263249,95012.0,95011.0,0.00698569]
[1732825664193,0.263249,95012.0,95011.0,0.28425898]
[1732825664402,0.263249,95012.0,95011.0,0.29084467]
[1732825664612,0.27415652,95012.0,95011.0,0.29084467]
[1732825664819,0.27815652,95012.0,95011.0,0.29084467]
[1732825665228,0.27815652,95012.0,95011.0,0.00698569]
[1732825665436,0.27815652,95012.0,95011.0,0.29119596]
[1732825666277,0.27815652,95012.0,95011.0,0.29205746]
[1732825666484,0.27815652,95012.0,95011.0,0.29205114]
[1732825667125,0.27815652,95012.0,95011.0,0.28546545]
[1732825668242,0.27815652,95012.0,95011.0,0.00784708]
[1732825669117,0.27815652,95012.0,95011.0,0.00710237]
[1732825670417,0.27815652,95012.0,95011.0,0.29130606]
[1732825670825,0.27815652,95012.0,95011.0,0.28472048]
[1732825671307,0.27815652,95012.0,95011.0,0.29130617]
[1732825673542,0.27815652,95012.0,95011.0,0.00710248]
[1732825674192,0.27815652,95012.0,95011.0,0.00051679]
[1732825674425,0.27815652,95012.0,95011.0,0.28472364]
[1732825679375,0.27815652,95012.0,95011.0,0.00051679]
[1732825679600,0.32445652,95012.0,95011.0,0.00051679]
[1732825680228,0.31645652,95012.0,95011.0,0.00051679]
[1732825680643,0.32545652,95012.0,95011.0,0.00051679]
[1732825680851,0.31645652,95012.0,95011.0,0.00051679]
[1732825681494,0.31245652,95012.0,95011.0,0.00051679]
[1732825681919,0.31645652,95012.0,95011.0,0.00051679]
[1732825682336,0.32145652,95012.0,95011.0,0.00051679]
[1732825682748,0.32545652,95012.0,95011.0,0.00051679]
[1732825684684,0.40155652,95012.0,95011.0,0.00051679]
[1732825689090,0.40155652,95012.0,95011.0,0.00051679]
[1732825690115,0.105256,95006.0,95005.0,0.28011711]
[1732825690656,0.255256,95006.0,95005.0,0.28011711]
[1732825691087,0.255266,94997.0,94996.0,0.0454]
[1732825691291,0.255266,94997.0,94996.0,0.06252394]
[1732825692520,0.255266,94997.0,94996.0,0.48205893]
[1732825692736,0.255266,94997.0,94996.0,0.48205856]
[1732825692924,0.257266,94997.0,94996.0,0.06252394]
[1732825693183,0.257266,94997.0,94996.0,0.48205922]
[1732825693406,0.257266,94997.0,94996.0,0.47152141]
[1732825693840,0.257266,94997.0,94996.0,0.47152146]
[1732825693841,0.255266,94997.0,94996.0,0.47152146]
[1732825694339,0.255266,94997.0,94996.0,0.42612146]
[1732825694536,0.105267,94996.0,94995.0,0.000862]
[1732825694747,0.255267,94996.0,94995.0,0.000862]
[1732825696469,0.266267,94996.0,94995.0,0.000862]
[1732825703412,0.62554367,94996.0,94995.0,0.000862]
[1732825703638,0.52271221,94996.0,94995.0,0.000862]
[1732825704065,0.396867,94996.0,94995.0,0.000862]
[1732825704304,0.266267,94996.0,94995.0,0.000862]
[1732825704525,0.28406316,94996.0,94995.0,0.000862]
[1732825704749,0.28906316,94996.0,94995.0,0.14283721]
[1732825704964,0.28106316,94996.0,94995.0,0.000862]
[1732825705171,0.28506316,94996.0,94995.0,0.000862]
[1732825705379,0.27606316,94996.0,94995.0,0.19016185]
[1732825705600,0.28006316,94996.0,94995.0,0.19016185]
[1732825705810,0.28906316,94996.0,94995.0,0.19016185]
[1732825706013,0.28006316,94996.0,94995.0,0.19016185]
[1732825706466,0.28906316,94996.0,94995.0,0.000862]
[1732825706910,0.27606316,94996.0,94995.0,0.19011777]
[1732825707100,0.28206316,94996.0,94995.0,0.19011777]
[1732825707650,0.27606316,94996.0,94995.0,0.19010562]
[1732825707862,0.28006316,94996.0,94995.0,0.000862]
[1732825708290,0.28906316,94996.0,94995.0,0.000862]
[1732825708539,0.64373983,94996.0,94995.0,0.000862]
[1732825708735,0.54090837,94996.0,94995.0,0.000862]
[1732825708902,0.54090837,94996.0,94995.0,0.0954804]
[1732825709585,0.53190837,94996.0,94995.0,0.0954804]
[1732825709985,0.54090837,94996.0,94995.0,0.0954804]
[1732825710200,0.53190837,94996.0,94995.0,0.0954804]
[1732825710342,0.28006316,94996.0,94995.0,0.0954804]
[1732825710550,0.27606316,94996.0,94995.0,0.0954804]
[1732825710809,0.28206316,94996.0,94995.0,0.0954804]
[1732825711218,0.27606316,94996.0,94995.0,0.0954804]
[1732825711423,0.27606316,94996.0,94995.0,0.000862]
[1732825711630,0.29006316,94996.0,94995.0,0.000862]
[1732825712452,0.27606316,94996.0,94995.0,0.000862]
[1732825712657,0.28506316,94996.0,94995.0,0.000862]
[1732825713065,0.28506316,94996.0,94995.0,0.09545021]
[1732825713281,0.27606316,94996.0,94995.0,0.09545021]
[1732825713504,0.28506316,94996.0,94995.0,0.09545021]
[1732825714160,0.28506316,94996.0,94995.0,0.000862]
[1732825714590,0.28506316,94996.0,94995.0,0.14274432]
[1732825714832,0.28906316,94996.0,94995.0,0.000862]
[1732825715043,0.28906316,94996.0,94995.0,0.14274432]
[1732825717036,0.33586316,94996.0,94995.0,0.14274432]
[1732825717880,0.33586316,94996.0,94995.0,0.000862]
[1732825718921,0.41296316,94996.0,94995.0,0.000862]
[1732825719431,0.41296316,94996.0,94995.0,0.09545064]
[1732825720519,0.41296316,94996.0,94995.0,0.000862]
[1732825721598,0.41296316,94996.0,94995.0,0.09545801]
[1732825722966,0.41296316,94996.0,94995.0,0.000862]
[1732825727554,0.41296316,94996.0,94995.0,0.14276193]
[1732825730633,0.41296316,94996.0,94995.0,0.000862]
[1732825733409,0.41296316,94996.0,94995.0,0.19019055]
[1732825735244,0.41300316,94996.0,94995.0,0.19019055]
[1732825735446,0.41300316,94996.0,94995.0,0.000862]
[1732825737606,0.41300316,94996.0,94995.0,0.23761125]
[1732825738285,0.41300316,94996.0,94995.0,0.000862]
[1732825738970,0.28910316,94996.0,94995.0,0.000862]
[1732825743647,0.16304,94996.0,94995.0,0.000862]
[1732825743860,0.268307,94996.0,94995.0,0.000862]
[1732825744070,0.268307,94996.0,94995.0,0.00744894]
[1732825744511,0.268307,94996.0,94995.0,0.42726324]
[1732825745411,0.268307,94996.0,94995.0,0.08684894]
[1732825745666,0.268307,94996.0,94995.0,0.13584894]
[1732825749102,0.268307,94996.0,94995.0,0.13584857]
[1732825749313,0.268307,94996.0,94995.0,0.000862]
[1732825749628,0.268307,94996.0,94995.0,0.00744857]
[1732825750808,0.16304,94996.0,94995.0,0.00744857]
[1732825750978,0.16304,94996.0,94995.0,0.12994857]
[1732825750979,0.01304,94996.0,94995.0,0.12994857]
[1732825752064,0.118307,94996.0,94995.0,0.12994857]
[1732825752279,0.259307,94996.0,94995.0,0.12994857]
[1732825752501,0.259307,94996.0,94995.0,0.12994825]
[1732825752720,0.265307,94996.0,94995.0,0.12994825]
[1732825752985,0.261307,94996.0,94995.0,0.12994825]
[1732825753466,0.263307,94996.0,94995.0,0.05474825]
[1732825754615,0.263307,94996.0,94995.0,0.00744825]
[1732825755028,0.263307,94996.0,94995.0,0.000862]
[1732825758747,0.339707,94996.0,94995.0,0.000862]
[1732825767139,0.387207,94996.0,94995.0,0.000862]
[1732825768435,0.385207,94996.0,94995.0,0.000862]
[1732825768640,0.379207,94996.0,94995.0,0.000862]
[1732825768862,0.383207,94996.0,94995.0,0.000862]
[1732825769042,0.392207,94996.0,94995.0,0.000862]
[1732825769261,0.379207,94996.0,94995.0,0.000862]
[1732825769538,0.388207,94996.0,94995.0,0.000862]
[1732825770200,0.392207,94996.0,94995.0,0.000862]
[1732825773678,0.344707,94996.0,94995.0,0.000862]
[1732825773883,0.268307,94996.0,94995.0,0.000862]
[1732825777688,0.268307,94996.0,94995.0,0.00744886]
[1732825778344,0.268307,94996.0,94995.0,0.000862]
[1732825780530,0.268307,94996.0,94995.0,0.00744886]
[1732825782660,0.268307,94996.0,94995.0,0.01798785]
[1732825784245,0.264307,94996.0,94995.0,0.01798785]
[1732825784496,0.269307,94996.0,94995.0,0.01798785]
[1732825784712,0.269307,94996.0,94995.0,0.000862]
[1732825784897,0.269307,94996.0,94995.0,0.01798785]
[1732825785043,0.264307,94996.0,94995.0,0.01798785]
[1732825785324,0.255307,94996.0,94995.0,0.01798785]
[1732825785523,0.264307,94996.0,94995.0,0.30208783]
[1732825785944,0.260307,94996.0,94995.0,0.30208783]
[1732825786172,0.269307,94996.0,94995.0,0.30208783]
[1732825788288,0.269307,94996.0,94995.0,0.01798785]
[1732825789365,0.269307,94996.0,94995.0,0.000862]
[1732825789584,0.269307,94996.0,94995.0,0.01798812]
[1732825790524,0.269307,94996.0,94995.0,0.00744897]
[1732825791640,0.269307,94996.0,94995.0,0.00744915]
[1732825797057,0.269307,94996.0,94995.0,0.30208815]
[1732825797301,0.269307,94996.0,94995.0,0.28496198]
[1732825797514,0.269307,94996.0,94995.0,0.000862]
[1732825798407,0.269307,94996.0,94995.0,0.30229226]
[1732825798645,0.269307,94996.0,94995.0,0.01798784]
[1732825798870,0.269307,94996.0,94995.0,0.017988]
[1732825799737,0.269307,94996.0,94995.0,0.29182329]
[1732825800145,0.269307,94996.0,94995.0,0.00744892]
[1732825800358,0.269307,94996.0,94995.0,0.0179881]
[1732825800587,0.269307,94996.0,94995.0,0.00744892]
[1732825801017,0.269307,94996.0,94995.0,0.29187243]
[1732825802349,0.269307,94996.0,94995.0,0.30241173]
[1732825803301,0.43178383,94996.0,94995.0,0.000862]
[1732825803518,0.396307,94996.0,94995.0,0.23787195]
[1732825803731,0.396307,94996.0,94995.0,0.000862]
[1732825804382,0.391307,94996.0,94995.0,0.000862]
[1732825804837,0.396307,94996.0,94995.0,0.000862]
[1732825805046,0.387307,94996.0,94995.0,0.000862]
[1732825805495,0.396307,94996.0,94995.0,0.000862]
[1732825806355,0.396307,94996.0,94995.0,0.19040434]
[1732825808420,0.396307,94996.0,94995.0,0.000862]
[1732825809791,0.396307,94996.0,94995.0,0.14298561]
[1732825809997,0.396307,94996.0,94995.0,0.000862]
[1732825810439,0.396307,94996.0,94995.0,0.09560367]
[1732825811145,0.52215221,94996.0,94995.0,0.09560367]
[1732825811390,0.52215221,94996.0,94995.0,0.05349567]
[1732825811641,0.278268,94995.0,94994.0,2e-07]
[1732825811856,0.38111321,94995.0,94994.0,2e-07]
[1732825812091,0.50471321,94995.0,94994.0,2e-07]
[1732825812931,0.51871321,94995.0,94994.0,2e-07]
[1732825813367,0.50971321,94995.0,94994.0,2e-07]
[1732825814426,0.50471321,94995.0,94994.0,2e-07]
[1732825814650,0.51371321,94995.0,94994.0,2e-07]
[1732825814903,0.51971321,94995.0,94994.0,2e-07]
[1732825816461,0.53029673,94995.0,94994.0,2e-07]
[1732825816875,0.63253112,94995.0,94994.0,2e-07]
[1732825817320,0.53029673,94995.0,94994.0,2e-07]
[1732825821226,0.40445152,94995.0,94994.0,2e-07]
[1732825821449,0.28085152,94995.0,94994.0,2e-07]
[1732825821889,0.28257432,94995.0,94994.0,2e-07]
[1732825823683,0.56816948,94995.0,94994.0,2e-07]
[1732825824713,0.67100094,94995.0,94994.0,2e-07]
[1732825825226,0.56816948,94995.0,94994.0,2e-07]
[1732825826585,0.39372427,94995.0,94994.0,2e-07]
[1732825826800,0.36167432,94995.0,94994.0,2e-07]
[1732825827938,0.35567432,94995.0,94994.0,2e-07]
[1732825828356,0.34667432,94995.0,94994.0,2e-07]
[1732825828590,0.35367432,94995.0,94994.0,2e-07]
[1732825829014,0.36267432,94995.0,94994.0,2e-07]
[1732825829200,0.35367432,94995.0,94994.0,2e-07]
[1732825829871,0.34667432,94995.0,94994.0,2e-07]
[1732825830161,0.35467432,94995.0,94994.0,2e-07]
[1732825830603,0.36367432,94995.0,94994.0,2e-07]
[1732825834518,0.3957426,94995.0,94994.0,2e-07]
[1732825835234,0.3166426,94995.0,94994.0,2e-07]
[1732825835482,0.3166426,94995.0,94994.0,0.14200826]
[1732825835483,0.28457432,94995.0,94994.0,0.14200826]
[1732825835699,0.28457432,94995.0,94994.0,0.18934429]
[1732825835919,0.28457432,94995.0,94994.0,0.19593168]
[1732825837014,0.27557432,94995.0,94994.0,0.19593168]
[1732825837230,0.28457432,94995.0,94994.0,0.14861197]
[1732825837441,0.28457432,94995.0,94994.0,0.14202458]
[1732825837654,0.27657432,94995.0,94994.0,0.18934429]
[1732825837893,0.27657432,94995.0,94994.0,2e-07]
[1732825838113,0.28457432,94995.0,94994.0,2e-07]
[1732825838551,0.27657432,94995.0,94994.0,2e-07]
[1732825838783,0.28357432,94995.0,94994.0,2e-07]
[1732825841953,0.28357432,94995.0,94994.0,0.18934429]
[1732825842601,0.41137432,94995.0,94994.0,0.18934429]
[1732825842903,0.36517432,94995.0,94994.0,0.18934429]
[1732825842995,0.28357432,94995.0,94994.0,0.18934429]
[1732825844521,0.28357432,94995.0,94994.0,2e-07]
[1732825846715,0.28357432,94995.0,94994.0,0.18946101]
[1732825847151,0.62357432,94995.0,94994.0,0.18945844]
[1732825847565,0.62357432,94995.0,94994.0,0.14211201]
[1732825847780,0.62357432,94995.0,94994.0,2e-07]
[1732825849281,0.62357432,94995.0,94994.0,0.09475343]
[1732825849517,0.62357432,94995.0,94994.0,2e-07]
[1732825851805,0.62357432,94995.0,94994.0,0.18945844]
[1732825856689,0.62357432,94995.0,94994.0,0.18949998]
[1732825861015,0.62357432,94995.0,94994.0,2e-07]
[1732825861226,0.62357432,94995.0,94994.0,0.18949455]
[1732825861900,0.62357432,94995.0,94994.0,0.00658764]
[1732825862589,0.62357432,94995.0,94994.0,0.24345692]
[1732825864105,0.62357432,94995.0,94994.0,2e-07]
[1732825864106,0.74877432,94995.0,94994.0,2e-07]
[1732825864352,0.74877432,94995.0,94994.0,0.1894885]
[1732825864817,0.74877432,94995.0,94994.0,2e-07]
[1732825868372,0.74877432,94995.0,94994.0,0.14212682]
[1732825868882,0.74877432,94995.0,94994.0,2e-07]
[1732825869370,0.78084806,94995.0,94994.0,2e-07]
[1732825870257,0.78084806,94995.0,94994.0,0.14213051]
[1732825871127,0.78084806,94995.0,94994.0,2e-07]
[1732825872015,0.78084806,94995.0,94994.0,0.14213051]
[1732825872517,0.78084806,94995.0,94994.0,0.14216237]
[1732825877696,0.78084806,94995.0,94994.0,0.18954977]
[1732825877937,0.74877432,94995.0,94994.0,0.18954977]
[1732825878161,0.74877432,94995.0,94994.0,2e-07]
[1732825878638,0.78082683,94995.0,94994.0,0.14218122]
[1732825878869,0.74877432,94995.0,94994.0,0.18954977]
[1732825879097,0.78082622,94995.0,94994.0,0.14218162]
[1732825879337,0.74877432,94995.0,94994.0,0.18954977]
[1732825879571,0.74877432,94995.0,94994.0,2e-07]
[1732825879801,0.78082718,94995.0,94994.0,2e-07]
[1732825880022,0.78082718,94995.0,94994.0,0.18954977]
[1732825880023,0.74877432,94995.0,94994.0,0.18954977]
[1732825880301,0.74877432,94995.0,94994.0,2e-07]
[1732825880759,0.74877432,94995.0,94994.0,0.18957925]
[1732825880988,0.74877432,94995.0,94994.0,2e-07]
[1732825881203,0.78082508,94995.0,94994.0,2e-07]
[1732825881938,0.74877432,94995.0,94994.0,2e-07]
[1732825882612,0.74877432,94995.0,94994.0,0.18959612]
[1732825882849,0.74877432,94995.0,94994.0,2e-07]
[1732825883079,0.780825,94995.0,94994.0,2e-07]
[1732825883798,0.74877432,94995.0,94994.0,2e-07]
[1732825884008,0.78082586,94995.0,94994.0,2e-07]
[1732825886074,0.62357432,94995.0,94994.0,0.23700185]
[1732825886302,0.62357432,94995.0,94994.0,2e-07]
[1732825886543,0.62357432,94995.0,94994.0,0.00658758]
[1732825893066,0.62357432,94995.0,94994.0,0.00658742]
[1732825896543,0.62357432,94995.0,94994.0,0.00658741]
[1732825896781,0.62357432,94995.0,94994.0,2e-07]
[1732825897014,0.62357432,94995.0,94994.0,0.00658739]
[1732825901238,0.62357432,94995.0,94994.0,0.00658751]
[1732825902182,0.62357432,94995.0,94994.0,2e-07]
[1732825902668,0.62357432,94995.0,94994.0,0.00658741]
[1732825913380,0.62357432,94995.0,94994.0,0.00608741]
[1732825914548,0.67287432,94995.0,94994.0,0.00608741]
[1732825914943,0.67287432,94995.0,94994.0,0.24380278]
[1732825915596,0.67287432,94995.0,94994.0,0.00694871]
[1732825916061,0.67287432,94995.0,94994.0,0.24380697]
[1732825916475,0.67287432,94995.0,94994.0,0.00694871]
[1732825917152,0.62357432,94995.0,94994.0,0.00694871]
[1732825918004,0.62357432,94995.0,94994.0,0.0008613]
[1732825925373,0.62357432,94995.0,94994.0,0.00744859]
[1732825933354,0.62357432,94995.0,94994.0,0.24693347]
[1732825933355,0.4629908,94995.0,94994.0,0.24693347]
[1732825933604,0.3577228,94995.0,94994.0,0.35220247]
[1732825933833,0.0017234,95005.0,94995.0,0.252768]
[1732825934067,0.0017234,95005.0,95001.0,0.1275]
[1732825934288,0.105258,95004.0,95003.0,0.4199578]
[1732825934505,0.105258,95004.0,95003.0,0.10284521]
[1732825934728,0.105258,95004.0,95003.0,0.13313696]
[1732825935445,0.105258,95004.0,95003.0,0.11996663]
[1732825935669,0.110258,95004.0,95003.0,0.11996663]
[1732825936600,0.260258,95004.0,95003.0,0.01712142]
[1732825936850,0.260258,95004.0,95003.0,0.3015565]
[1732825937073,0.260258,95004.0,95003.0,0.00658516]
[1732825937518,0.105264,94999.0,94998.0,0.28445407]
[1732825937753,0.105264,94999.0,94998.0,0.29104042]
[1732825939608,0.106264,94999.0,94998.0,0.00658635]
[1732825939856,0.106264,94999.0,94998.0,0.00758635]
[1732825940095,0.106264,94999.0,94998.0,0.29204042]
[1732825941016,0.106264,94999.0,94998.0,0.00758635]
[1732825943284,0.106264,94999.0,94998.0,0.00489273]
[1732825944416,0.106264,94999.0,94998.0,0.18283794]
[1732825944681,0.106264,94999.0,94998.0,0.19337582]
[1732825944935,0.106264,94999.0,94998.0,0.20265328]
[1732825945171,0.106264,94999.0,94998.0,0.18948213]
[1732825946106,0.106264,94999.0,94998.0,0.60869435]
[1732825946324,0.106264,94999.0,94998.0,0.18948213]
[1732825947308,0.106264,94999.0,94998.0,0.11438213]
[1732825948920,0.001,94999.0,94998.0,0.11438213]
[1732825949151,0.001,94999.0,94998.0,0.24151009]
[1732825949404,0.001,94999.0,94998.0,0.3785181]
[1732825950358,0.00178409,95004.0,95002.0,0.01]
[1732825950593,0.00178409,95004.0,95003.0,0.35717482]
[1732825950830,0.00178409,95004.0,95003.0,0.3553121]
[1732825951545,0.00178409,95004.0,95003.0,0.77377026]
[1732825951786,0.00278409,95004.0,95003.0,0.77377026]
[1732825952272,0.00578409,95004.0,95003.0,0.77377026]
[1732825952506,0.00178409,95004.0,95003.0,0.3653121]
[1732825952763,0.00178409,95004.0,95003.0,0.78365725]
[1732825952764,0.00578409,95004.0,95003.0,0.78365725]
[1732825953014,0.00578409,95004.0,95003.0,0.3653121]
[1732825953250,0.00578409,95004.0,95003.0,0.35214113]
[1732825953745,0.00278409,95004.0,95003.0,0.35214113]
[1732825953983,0.10804209,95004.0,95003.0,0.11338213]
[1732825954229,0.00178409,95004.0,95003.0,0.11338213]
[1732825954468,0.00178409,95004.0,95003.0,0.11438213]
[1732825955459,0.00178409,95004.0,95003.0,0.12096735]
[1732825961331,0.10704209,95004.0,95003.0,0.12096735]
[1732825962063,0.00178409,95004.0,95003.0,0.12096735]
[1732825962332,0.10704209,95004.0,95003.0,0.12096735]
[1732825962569,0.00178409,95004.0,95003.0,0.12096735]
[1732825963046,0.00178409,95004.0,95003.0,0.10384521]
[1732825964253,0.00178409,95004.0,95003.0,0.12096691]
[1732825964474,0.10704209,95004.0,95003.0,0.10384521]
[1732825964688,0.00178409,95004.0,95003.0,0.10384521]
[1732825966601,0.00178409,95004.0,95003.0,0.12096686]
[1732825966835,0.10704209,95004.0,95003.0,0.12096686]
[1732825967770,0.00178409,95004.0,95003.0,0.12096686]
[1732825969607,0.10704209,95004.0,95003.0,0.12096686]
[1732825971758,0.00178409,95004.0,95003.0,0.12096686]
[1732825971972,0.10704209,95004.0,95003.0,0.12096686]
[1732825972193,0.00178409,95004.0,95003.0,0.12096686]
[1732825972887,0.10704209,95004.0,95003.0,0.12096686]
[1732825974730,0.00178409,95004.0,95003.0,0.12096686]
[1732825974947,0.10704209,95004.0,95003.0,0.16308886]
[1732825979604,0.10704209,95004.0,95003.0,0.12096686]
[1732825979985,0.00178409,95004.0,95003.0,0.12096686]
[1732825980197,0.10704209,95004.0,95003.0,0.12096686]
[1732825980750,0.10704209,95004.0,95003.0,0.12085636]
[1732825981855,0.00178409,95004.0,95003.0,0.12085636]
[1732825982995,0.00178409,95004.0,95003.0,0.12085639]
[1732825984125,0.10704209,95004.0,95003.0,0.12085639]
[1732825984340,0.00178409,95004.0,95003.0,0.12085639]
[1732825986801,0.00178409,95004.0,95003.0,0.23797813]
[1732825987040,0.00178409,95004.0,95003.0,0.24111366]
[1732825987268,0.00178409,95004.0,95003.0,0.13085639]
[1732825987503,0.00178409,95004.0,95003.0,0.2379781]
[1732825987743,0.210507,95009.0,95005.0,0.01]
[1732825987967,0.105254,95008.0,95006.0,0.11996689]
[1732825988203,0.105253,95009.0,95007.0,0.01712168]
[1732825988414,0.0813234,95012.0,95005.0,0.01186273]
[1732825988415,0.0813234,95012.0,95008.0,0.11996689]
[1732825988645,0.105252,95010.0,95009.0,0.01712168]
[1732825988862,0.105252,95010.0,95009.0,0.11996689]
[1732825989569,0.0813234,95012.0,95009.0,0.11996689]
[1732825989806,0.106252,95010.0,95005.0,0.01186273]
[1732825990257,0.003,95009.0,95006.0,0.11996596]
[1732825990496,0.105251,95011.0,95007.0,0.01712075]
[1732825990762,0.105252,95010.0,95008.0,0.11996596]
[1732825990953,0.105252,95010.0,95009.0,0.01712075]
[1732825991180,0.105252,95010.0,95009.0,0.11996596]
[1732825991880,0.105252,95010.0,95009.0,0.10284521]
[1732825992103,0.105252,95010.0,95009.0,0.11996588]
[1732825992323,0.1875734,95012.0,95009.0,0.11996588]
[1732825992542,0.1865734,95012.0,95010.0,0.11996588]
[1732825992762,0.10525,95011.0,95010.0,0.10284521]
[1732825993027,0.10525,95011.0,95010.0,0.11996592]
[1732825993464,0.10525,95011.0,95010.0,0.12786234]
[1732825994590,0.10925,95011.0,95010.0,0.12786234]
[1732825995066,0.18485,95011.0,95010.0,0.12786234]
[1732825995528,0.18585,95011.0,95010.0,0.12786234]
[1732825998442,0.1875726,95011.0,95010.0,0.12786234]
[1732826001507,0.0823226,95011.0,95010.0,0.23311434]
[1732826003623,0.0027226,95011.0,95010.0,0.23311434]
[1732826004691,0.0017226,95011.0,95010.0,0.23311434]
[1732826006403,0.0027226,95011.0,95010.0,0.23311434]
[1732826010417,0.0027226,95011.0,95010.0,0.23310911]
[1732826013731,0.0027226,95011.0,95010.0,0.23310825]
[1732826017091,0.0027226,95011.0,95010.0,0.22257339]
[1732826017309,0.0027226,95011.0,95010.0,0.23310825]
[1732826017544,0.0027226,95011.0,95010.0,0.22521636]
[1732826017759,0.0027226,95011.0,95010.0,0.23310784]
[1732826020635,0.0027226,95011.0,95010.0,0.23310752]
[1732826023355,0.0027226,95011.0,95010.0,0.24310752]
[1732826023625,0.0027226,95011.0,95010.0,0.24810274]
[1732826023845,0.15,95021.0,95020.0,0.105241]
[1732826024077,0.15,95021.0,95020.0,0.215977]
[1732826024295,0.15,95021.0,95020.0,0.23309545]
[1732826024731,0.15,95021.0,95020.0,0.12785445]
[1732826025870,0.15,95021.0,95020.0,0.23309545]
[1732826026098,0.152,95021.0,95020.0,0.23309545]
[1732826026575,0.158,95021.0,95020.0,0.22620466]
[1732826026801,0.158,95021.0,95020.0,0.21567023]
[1732826026802,0.008,95021.0,95020.0,0.21567023]
[1732826027025,0.008,95021.0,95020.0,0.20908621]
[1732826027241,0.008,95021.0,95020.0,0.21697812]
[1732826027473,0.008,95021.0,95020.0,0.23409709]
[1732826027695,0.008,95021.0,95020.0,0.22620518]
[1732826028558,0.008,95021.0,95020.0,0.12096418]
[1732826029223,0.008,95021.0,95020.0,0.12885774]
[1732826029430,0.008,95021.0,95020.0,0.23409874]
[1732826031412,0.008,95021.0,95020.0,0.20908621]
[1732826033576,0.008,95021.0,95020.0,0.10384521]
[1732826033799,0.008,95021.0,95020.0,0.20908621]
[1732826034050,0.008,95021.0,95020.0,0.21962096]
[1732826034282,0.008,95021.0,95020.0,0.22620518]
[1732826034954,0.0534,95021.0,95020.0,0.12096418]
[1732826035486,0.0534,95021.0,95020.0,0.22620518]
[1732826037277,0.0534,95021.0,95020.0,0.23937362]
[1732826037716,0.008,95021.0,95020.0,0.23937362]
[1732826037938,0.0097226,95021.0,95020.0,0.23937362]